[Event "Krakow Championship-A 2022"]
[Site "Krakow"]
[Date "2022.06.26"]
[Round "2.8"]
[White "Lim, Zhuo Ren"]
[Black "Kozak, Antoni"]
[Result "0-1"]
[ECO "D43"]
[WhiteElo "2290"]
[BlackElo "2459"]
[Annotator "TA"]
[PlyCount "134"]
[EventDate "2022.06.25"]
[EventType "swiss"]
[EventCountry "POL"]
[SourceTitle "playchess.com"]
[Source "ChessBase"]
[SourceQuality "1"]
[TimeControl "40/5400+30:1800+30"]

{[%evp 15,134,0,0,-5,0,0,0,0,12,31,28,8,34,0,55,27,48,18,85,87,91,104,168,152,190,193,177,8,0,0,0,0,0,0,0,0,0,0,0,-8,-8,-66,-41,-121,-117,-116,-115,-122,-125,-120,-77,-80,-60,-63,-50,-82,-43,-83,-82,-72,-83,-84,-43,-43,-34,-45,-45,-45,-53,-53,-55,-55,-54,-79,-79,-79,-79,-79,-79,-158,-158,-265,-265,-265,-158,-158,-158,-158,-158,-158,-66,-56,-43,-2981,-2989,-2722,-2085,-676,-391,-2716,-2517,-3118,-761,-1106,-1043,-12812,-895,-29940,-12395,-9541,-3361,-29957,-29951,-29953,-29955,-12395,-9997,-12569,-12639,-29985,-29986]} 1. d4 {[%emt 0:00:04]} d5 {[%emt 0:00:34]} 2. c4 {[%emt 0:00:12]} c6 {[%emt 0:00:13]} 3. Nf3 {[%emt 0:00:11]} Nf6 {[%emt 0:00:15]} 4. Nc3 {[%emt 0:00:24]} e6 {[%emt 0:00:10]} 5. Bg5 {[%emt 0:00:17][%cal Bc1g5,Bg5h4,Bh4g3,Bg3e5][%mdl 32]} h6 {[%emt 0:00:35]} 6. Bh4 {[%emt 0:00:03]} dxc4 {[%emt 0:00:25]} 7. e4 {[%emt 0:00:06]} g5 {[%emt 0:00:03]} 8. Bg3 {[%emt 0:00:05]} b5 {[%emt 0:00:04]} 9. Ne5 {[%emt 0:00:06] D43: Semi-Slav: 5 Bg5 h6.} Nbd7 {[%emt 0:00:34] 9...Bb7 is not played anymore.} 10. Be2 {[%emt 0:03:18]} Bb7 {[%emt 0:02:20]} 11. O-O {[%emt 0:00:22] The position is equal.} h5 {[%emt 0:00:03]} 12. Nxd7 {[%emt 0:00:12]} Qxd7 {[%emt 0:00:07]} 13. Be5 {[%emt 0:00:04]} Rh6 {[%emt 0:00:25]} 14. f4 {[%emt 0:00:25]} (14. Qc1 $5 {[%cal Rc1g5]}) 14... gxf4 {[%emt 0:19:48]} (14... g4 $11) 15. Rxf4 $14 {[%emt 0:00:18]} Qe7 {[%emt 0:00:22] [#]} 16. Rf2 $146 {[%emt 0:00:05]} ({Predecessor:} 16. Qf1 Nd7 17. Bc7 Rc8 18. Ba5 e5 19. dxe5 Nxe5 20. Rf5 Bg7 21. a3 Kf8 22. Nd1 {0-1 (43) Rietze,C (2341)-Yagupov,I (2349) Police 2018}) 16... b4 {[%emt 0:23:17]} (16... O-O-O $11 {remains equal.}) 17. Na4 $1 $16 {[%emt 0:04:38]} Nxe4 {[%emt 0:04:53]} 18. Rf4 {[%emt 0:00:15]} f5 {[%emt 0:03:23]} (18... c5 $16) 19. Bxh5+ $18 {[%emt 0:04:18]} Rxh5 {[%emt 0:00:50]} 20. Qxh5+ {[%emt 0:00:05]} Qf7 {[%emt 0:00:02]} 21. Qxf7+ {[%emt 0:01:47]} (21. Qe2 $1 $18) 21... Kxf7 $11 {[%emt 0:00:14]} 22. Rxe4 {[%emt 0:01:02]} fxe4 {[%emt 0:00:09]} 23. Rf1+ {[%emt 0:00:18]} Kg8 {[%emt 0:01:11]} 24. Nc5 {[%emt 0:03:12] Inhibits Ba6.} Bxc5 {[%emt 0:03:11]} 25. dxc5 {[%emt 0:00:04][%mdl 4096] Endgame KRB-KRB} Ba6 {[%emt 0:00:24][%cal Oc4c3]} 26. Rf4 {[%emt 0:01:52]} e3 {[%emt 0:04:36]} 27. Rg4+ {[%emt 0:00:59]} Kh7 {[%emt 0:01:00]} 28. Re4 {[%emt 0:09:30]} (28. Rg7+ $11 Kh6 29. Rg3) 28... c3 {[%emt 0:05:11]} 29. Rxe3 {[%emt 0:00:42]} (29. bxc3 $15 Rf8 30. Rf4) 29... Rf8 {[%emt 0:04:08][%csl Ga6][%cal Rf8f1]} 30. Re1 {[%emt 0:00:29] Prevents Rf1+.} c2 {[%emt 0:01:39]} 31. b3 {[%emt 0:01:35]} Rf5 {[%emt 0:00:57][%cal Of5e5] And now ...Rxe5! would win.} 32. Bd4 {[%emt 0:01:05]} e5 {[%emt 0:01:34]} 33. Be3 {[%emt 0:00:20]} Bd3 {[%emt 0:00:06]} 34. h4 {[%emt 0:02:47]} Rf8 {[%emt 0:04:05]} 35. Kh2 {[%emt 0:00:40]} Rg8 {[%emt 0:02:50] Black is more active.} 36. Bd2 {[%emt 0:02:58]} Rg4 $1 {[%emt 0:01:50]} 37. g3 {[%emt 0:01:41]} Rd4 {[%emt 0:04:54]} 38. Rxe5 {[%emt 0:06:45]} Bb5 {[%emt 0:09:09]} 39. Bg5 {[%emt 0:03:45]} Rd1 {[%emt 0:01:53]} 40. h5 {[%emt 0:00:25]} c1=Q {[%emt 0:01:14]} 41. Re7+ {[%emt 0:30:05]} Kg8 {[%emt 0:31:05]} 42. Bxc1 {[%emt 0:00:06]} Rxc1 {[%emt 0:00:03]} 43. Rxa7 $15 {[%emt 0:01:08] KRB-KR} Be2 {[%emt 0:00:00]} 44. Rb7 {[%emt 0:00:00]} Bxh5 {[%emt 0:00:00] aiming for ...Rc2+.} ({Weaker is} 44... Rxc5 45. Rxb4 Rxh5+ 46. Kg2) 45. Rxb4 {[%emt 0:00:00]} Rc2+ {[%emt 0:00:00]} 46. Kh3 {[%emt 0:00:00]} Rxa2 {[%emt 0:00:00]} 47. Rb6 {[%emt 0:00:00]} (47. g4 $142 Bf7 48. Rb6) 47... Bf3 $17 {[%emt 0:00:00]} 48. b4 {[%emt 0:00:00]} (48. g4 $17) 48... Rb2 $1 $19 {[%emt 0:00:00]} 49. g4 {[%emt 0:00:00] [#]} Kf7 {[%emt 0:00:00]} (49... Rb3 $1 $19 50. Kg3 Be2+ 51. Kf4 Bb5) 50. Kg3 $17 {[%emt 0:00:00]} Bd5 {[%emt 0:00:00]} 51. Kf4 {[%emt 0:00:00]} Ke6 {[%emt 0:00:00]} 52. g5 {[%emt 0:00:00]} Kd7 {[%emt 0:00:00]} (52... Rb1 $17 53. g6 Kf6) 53. Ke5 $15 {[%emt 0:00:00]} Bc4 {[%emt 0:00:00] Hoping for ...Re2+.} 54. g6 $2 {[%emt 0:00:00][%mdl 8192]} (54. Rb7+ $15 Kc8 55. Ra7) 54... Kc7 $19 {[%emt 0:00:00]} 55. Kd4 {[%emt 0:00:00]} Bb5 {[%emt 0:00:00]} 56. Ke5 {[%emt 0:00:00]} Bd3 {[%emt 0:01:30]} 57. g7 $2 {[%emt 0:01:01] [#]} (57. Kd4 Bxg6 58. Kc3 Rc2+ 59. Kb3) 57... Rg2 $1 {[%emt 0:00:14]} 58. Kf6 {[%emt 0:00:11]} Bc4 {[%emt 0:00:14] Threatens to win with ...Rg1.} 59. b5 {[%emt 0:00:33]} cxb5 {[%emt 0:01:38][%cal Bc6b5,Bb5b4,Bb4b3,Bb3b2][%mdl 32] White must now prevent ...Rf2+.} 60. Rd6 {[%emt 0:00:31]} Rf2+ {[%emt 0:00:49]} (60... Re2 $142 61. Ra6 Ra2) 61. Ke5 {[%emt 0:00:57]} Re2+ {[%emt 0:01:05]} 62. Kf6 {[%emt 0:00:18]} Re8 {[%emt 0:00:44]} 63. Kf5 {[%emt 0:02:05]} Rb8 {[%emt 0:00:59]} 64. Ke5 {[%emt 0:01:06]} b4 {[%emt 0:00:56]} 65. Kd4 {[%emt 0:00:12]} Bg8 {[%emt 0:00:12]} 66. Rf6 {[%emt 0:00:45]} b3 {[%emt 0:00:42] ( -> ...b2)} 67. Kc3 {[%emt 0:00:40]} b2 {[%emt 0:00:44] What a bad dream for White.  Weighted Error Value: White=0.58/Black=0.32} 0-1

[Event "Krakow Championship-A 2022"]
[Site "Krakow"]
[Date "2022.06.26"]
[Round "2.9"]
[White "Romanishin, Oleg M"]
[Black "Marszalek, Maciej"]
[Result "1-0"]
[ECO "A05"]
[WhiteElo "2400"]
[BlackElo "2290"]
[Annotator "TA"]
[PlyCount "71"]
[EventDate "2022.06.25"]
[EventType "swiss"]
[EventCountry "POL"]
[SourceTitle "playchess.com"]
[Source "ChessBase"]
[SourceQuality "1"]
[TimeControl "40/5400+30:1800+30"]

{[%evp 16,71,35,30,30,29,24,40,22,18,31,19,17,17,33,33,45,49,52,36,95,23,26,37,25,18,42,45,47,37,79,79,89,93,105,103,129,121,117,119,181,119,117,124,328,323,803,802,773,776,704,688,910,889,29985,29986,29981,29982]} 1. Nf3 {[%emt 0:00:03]} Nf6 {[%emt 0:00:41]} 2. g3 {[%emt 0:00:07]} g6 {[%emt 0:00:56]} 3. c4 {[%emt 0:00:27]} Bg7 {[%emt 0:00:05]} 4. Bg2 {[%emt 0:00:04]} O-O {[%emt 0:00:21]} 5. O-O {[%emt 0:00:21]} c5 {[%emt 0:00:49]} 6. d4 {[%emt 0:00:28]} d6 {[%emt 0:00:41][%cal Bd7d6,Bd6d5][%mdl 32]} 7. b3 {[%emt 0:00:22]} d5 {[%emt 0:01:42]} 8. Bb2 {[%emt 0:03:08]} dxc4 {[%emt 0:01:09]} 9. dxc5 {[%emt 0:11:20] has lost popularity (9.bxc4).} Na6 {[%emt 0:07:04] E60: King's Indian: Unusual lines and Fianchetto Variation without Nc3.} 10. Nbd2 {[%emt 0:08:17]} Nxc5 {[%emt 0:06:57]} 11. Nxc4 {[%emt 0:00:41]} Be6 {[%emt 0:00:38] White is slightly better.} 12. Rc1 {[%emt 0:02:10]} Bh6 {[%emt 0:03:00] [#] Prevents Ng5.} 13. Ncd2 $146 {[%emt 0:20:24]} ({Predecessor:} 13. Ra1 Rc8 14. Nfe5 Qc7 15. e3 Rfd8 16. Qe2 Bd5 17. Rfd1 Bxg2 18. Kxg2 Bg7 19. Rac1 Rxd1 20. Rxd1 {½-½ (25) Howell,D (2696)-Jones,G (2682) London 2018}) 13... Rc8 {[%emt 0:05:40]} 14. b4 {[%emt 0:08:56]} Na6 {[%emt 0:05:44]} 15. a3 {[%emt 0:08:13]} Qd7 {[%emt 0:08:12]} 16. e3 {[%emt 0:02:54]} Rxc1 {[%emt 0:03:07]} 17. Qxc1 {[%emt 0:00:16]} Bh3 {[%emt 0:03:42]} (17... Rd8 $14) 18. Bxf6 {[%emt 0:10:44]} (18. Bxh3 $16 Qxh3 19. Bxf6 exf6 20. Qc3) 18... Bxg2 $11 {[%emt 0:03:00]} 19. Kxg2 {[%emt 0:00:05]} exf6 {[%emt 0:00:05]} 20. Ne4 {[%emt 0:00:08]} Qe6 {[%emt 0:02:00]} 21. Nc5 {[%emt 0:02:19]} Nxc5 {[%emt 0:01:04]} 22. Qxc5 {[%emt 0:00:05]} b6 {[%emt 0:00:25]} 23. Qc7 {[%emt 0:02:41]} Rc8 {[%emt 0:19:58]} 24. Qxa7 {[%emt 0:00:57]} Qc6 {[%emt 0:00:40] [#] Inhibits Qb7. Hoping for ...Ra8.} 25. Rd1 {[%emt 0:02:17]} Bf8 {[%emt 0:00:44]} 26. Qd7 {[%emt 0:01:38]} Qa8 {[%emt 0:00:12]} 27. Rd3 {[%emt 0:01:49] White is more active.} Rc1 {[%emt 0:04:13]} (27... Rc2 $16 28. Qd5 Qe8) 28. Qd5 {[%emt 0:02:00]} ({White should try} 28. Qb5 $18) 28... Qa6 {[%emt 0:00:17]} 29. e4 {[%emt 0:02:39][%cal Be3e4,Be4e5,Be5f6][%mdl 32]} Ra1 $2 {[%emt 0:03:13] [#] Black cannot hold the game after this.} (29... Rc8 $16 30. Qd4 Be7) 30. e5 $18 {[%emt 0:01:31]} Rxa3 $2 {[%emt 0:01:23]} (30... b5 31. exf6 Qxf6 32. Qxb5 Qe7) 31. Rxa3 {[%emt 0:00:07]} Qxa3 {[%emt 0:00:03]} 32. exf6 {[%emt 0:00:08] KQB-KQN} Qa7 {[%emt 0:03:09]} 33. Ne5 {[%emt 0:01:43]} h6 {[%emt 0:01:25]} 34. Nxg6 {[%emt 0:01:59]} Bxb4 {[%emt 0:00:35]} 35. Qd8+ {[%emt 0:00:31]} Kh7 {[%emt 0:00:01]} 36. Ne7 {[%emt 0:00:20] Weighted Error Value: White=0.10 (very precise) /Black=0.51} 1-0

[Event "Krakow Championship-A 2022"]
[Site "Krakow"]
[Date "2022.06.26"]
[Round "2.10"]
[White "Szustakowski, Antoni"]
[Black "Murphy, Conor E"]
[Result "1/2-1/2"]
[ECO "A09"]
[WhiteElo "2265"]
[BlackElo "2395"]
[Annotator "TA"]
[PlyCount "164"]
[EventDate "2022.06.25"]
[EventType "swiss"]
[EventCountry "POL"]
[SourceTitle "playchess.com"]
[Source "ChessBase"]
[SourceQuality "1"]
[TimeControl "40/5400+30:1800+30"]

{[%evp 14,164,22,17,30,17,8,0,12,0,0,0,0,0,0,0,16,-21,61,72,70,70,66,61,62,68,68,62,68,64,71,29,70,62,77,56,65,23,119,36,68,68,77,74,80,73,164,81,81,81,87,20,21,-8,-8,-8,-8,-8,-8,-8,-8,-14,0,-8,0,0,0,-8,0,0,0,-52,0,0,0,0,-6,-39,0,0,0,0,0,0,0,0,0,0,0,-52,-8,-8,0,0,0,0,0,0,0,0,0,-8,0,0,0,0,0,0,0,0,0,0,0,0,0,0,0,0,8,8,8,8,8,8,8,8,8,8,690,690,690,20,20,20,20,20,53,8,8,8,8,0,0,0,0,0,0,0,0,0,0,0,0]} 1. Nf3 {[%emt 0:00:02]} d5 {[%emt 0:00:56]} 2. c4 {[%emt 0:00:11]} d4 {[%emt 0:04:35]} 3. g3 {[%emt 0:01:32]} c5 {[%emt 0:00:56]} 4. e3 {[%emt 0:03:17]} Nc6 {[%emt 0:01:37]} 5. exd4 {[%emt 0:00:25]} cxd4 {[%emt 0:02:06]} 6. d3 {[%emt 0:01:16]} e6 {[%emt 0:07:33]} 7. Bg2 {[%emt 0:02:54]} Nf6 {[%emt 0:00:27]} 8. O-O {[%emt 0:00:07]} h6 {[%emt 0:03:48] A13: English Opening: 1...e6.} 9. Na3 {[%emt 0:00:17]} Bxa3 {[%emt 0:00:35]} 10. bxa3 {[%emt 0:00:05]} O-O {[%emt 0:00:16]} (10... e5 11. Re1 $16) 11. Bf4 {[%emt 0:00:07]} Ng4 $1 {[%emt 0:01:23] Against Ne5} 12. Bd2 {[%emt 0:01:25]} (12. Nxd4 $2 Qxd4 13. Rb1 (13. Qxg4 $2 e5 $19) 13... e5 $19) 12... e5 {[%emt 0:02:11] [#]} 13. Re1 $146 {[%emt 0:03:58]} ({Predecessor:} 13. Bb4 Re8 14. Nd2 Nf6 15. Ne4 Nxe4 16. Bxe4 Bh3 17. Re1 Qd7 18. Rb1 Kh8 19. Bd2 {1-0 (44) Vachier Lagrave,M (2758)-Anton Guijarro,D (2673) chess24.com INT 2021}) 13... Re8 {[%emt 0:01:03]} 14. Rb1 {[%emt 0:01:12]} Qc7 {[%emt 0:06:23]} 15. Rb5 {[%emt 0:12:31]} Rb8 {[%emt 0:04:24]} ({Black should try} 15... Bd7 $11) 16. h3 $14 {[%emt 0:06:51]} Nf6 {[%emt 0:01:08] [#]} 17. Nxe5 $1 {[%emt 0:00:17]} Nxe5 {[%emt 0:15:53] [#]} 18. Rbxe5 $1 {[%emt 0:00:11]} Rxe5 {[%emt 0:00:36]} 19. Rxe5 {[%emt 0:00:06]} Qxe5 {[%emt 0:04:04]} 20. Bf4 {[%emt 0:00:07][%mdl 64] Deflection} Qa5 {[%emt 0:06:05]} 21. Bxb8 {[%emt 0:00:11]} Qxa3 {[%emt 0:00:39]} 22. Be5 {[%emt 0:07:30]} Qc3 {[%emt 0:09:52] Against Qd2} 23. g4 {[%emt 0:09:56]} b6 {[%emt 0:06:13]} 24. Qe2 $36 {[%emt 0:06:19][%mdl 2048] White has some pressure.} Be6 $1 {[%emt 0:04:25]} 25. Bc6 {[%emt 0:10:17]} Nh7 {[%emt 0:05:46] [#]} (25... Qb4 $11) 26. f4 {[%emt 0:04:14]} (26. Kg2 $1 $16) 26... Nf8 {[%emt 0:02:52]} 27. f5 {[%emt 0:08:09]} Bd7 {[%emt 0:00:15]} 28. Bg2 {[%emt 0:00:06] This bishop pair is nice.} Ba4 {[%emt 0:02:23]} 29. Qe4 {[%emt 0:02:10]} (29. Bd5 {with more complications.} Qc1+ 30. Kg2 Bd1 31. Qe4) 29... Qa1+ {[%emt 0:03:37]} (29... Bc2 $16) 30. Kh2 {[%emt 0:00:44]} (30. Bf1 $18 {and White stays clearly on top.}) 30... Qxa2 $16 {[%emt 0:00:40]} 31. Bxd4 {[%emt 0:00:51]} Qd2 {[%emt 0:01:20][%cal Oa4c6]} 32. Be3 {[%emt 0:06:01]} (32. Qe5 $16 {[%csl Gd4][%cal Re5g7]} f6 33. Qe3 Qxe3 34. Bd5+ (34. Bxe3 Nd7 $16) 34... Qe6 35. fxe6) 32... Qe2 $11 {[%emt 0:00:12]} 33. c5 {[%emt 0:02:40] [#]} Bc6 $1 {[%emt 0:00:59]} 34. Qxc6 {[%emt 0:00:28]} Qxe3 {[%emt 0:00:02]} 35. cxb6 {[%emt 0:00:07]} axb6 {[%emt 0:00:28][%mdl 4096] Endgame KQB-KQN} 36. Qd5 {[%emt 0:01:39]} Qf4+ {[%emt 0:01:13]} 37. Kg1 {[%emt 0:00:09]} Qc1+ {[%emt 0:00:51]} 38. Kh2 {[%emt 0:00:04]} Qc7+ {[%emt 0:00:03]} 39. Kg1 {[%emt 0:00:07]} Qc1+ {[%emt 0:00:25]} 40. Kh2 {[%emt 0:00:05]} Qc7+ {[%emt 0:00:05]} 41. Kg1 {[%emt 0:30:04]} Nd7 {[%emt 0:10:41]} 42. d4 {[%emt 0:00:00]} ({White should play} 42. Qc6 $11 Qa7 43. Bd5) 42... Kf8 {[%emt 0:02:26]} (42... Qc1+ $15 43. Kh2 Nf6) 43. Qa8+ {[%emt 0:00:00]} Qb8 {[%emt 0:01:57]} 44. Qc6 {[%emt 0:00:00]} Nf6 {[%emt 0:00:37]} 45. Qc4 {[%emt 0:00:00]} Ne8 {[%emt 0:01:52]} 46. Kf2 {[%emt 0:00:00]} Qd6 {[%emt 0:02:17]} 47. Ke2 {[%emt 0:00:00]} Qg3 {[%emt 0:09:51]} 48. Qd5 {[%emt 0:00:00] Active counter play!} Nd6 {[%emt 0:01:44]} 49. Qf3 {[%emt 0:00:00]} Qh2 {[%emt 0:01:28]} 50. Kf2 {[%emt 0:00:00]} b5 {[%emt 0:01:59]} 51. Qe3 {[%emt 0:00:57]} (51. Qa8+ $11 Ne8 52. Qa3+ Nd6 53. Qa8+ Ne8 54. Qa3+ Nd6 55. Kf3) 51... Nc4 {[%emt 0:00:53]} (51... b4 $5 {[%cal Rb4b3]} 52. Kf1 h5 $15) 52. Qe4 {[%emt 0:00:53]} ({Don't blunder} 52. Qg3 $2 Qxg3+ 53. Kxg3 b4 $19) 52... Qb8 {[%emt 0:01:09]} (52... Qd6 {keeps more tension.} 53. Qa8+ Ke7 54. Qb7+ Kf6) 53. Qa8 {[%emt 0:02:09]} Qxa8 {[%emt 0:00:06]} 54. Bxa8 {[%emt 0:00:04] KB-KN} Nb6 {[%emt 0:01:07]} 55. Bc6 {[%emt 0:01:52]} b4 {[%emt 0:00:01]} 56. Ke2 {[%emt 0:00:08]} Ke7 {[%emt 0:00:13]} 57. Kd2 {[%emt 0:00:08]} Kd6 {[%emt 0:00:39]} 58. Bf3 {[%emt 0:02:20]} Nd5 {[%emt 0:01:09]} 59. Kc2 {[%emt 0:00:29]} h5 {[%emt 0:00:43]} 60. gxh5 {[%emt 0:02:37] Intending Bxd5 and mate.} Ne3+ {[%emt 0:00:17]} 61. Kd3 {[%emt 0:01:13]} Nxf5 {[%emt 0:00:09]} 62. Kc4 {[%emt 0:00:40]} b3 {[%emt 0:00:42] ...b2 is the strong threat.} 63. Bg4 {[%emt 0:00:21]} Nh4 {[%emt 0:01:01] ( -> ...b2)} 64. Kxb3 {[%emt 0:00:12]} f5 {[%emt 0:00:25]} 65. Bd1 {[%emt 0:01:15]} Kd5 {[%emt 0:00:34]} 66. Kc3 {[%emt 0:00:10]} f4 {[%emt 0:00:31]} 67. Kd3 {[%emt 0:00:20] aiming for Bb3+.} f3 {[%emt 0:00:29]} 68. Bb3+ {[%emt 0:01:10]} Kd6 {[%emt 0:00:04]} 69. Ke4 {[%emt 0:00:18]} Ke7 {[%emt 0:00:25]} (69... f2 $5 70. Bc4 Ke7 $16) 70. Bc4 {[%emt 0:02:03] Black must now prevent d5.} Kd6 $2 {[%emt 0:01:08][%mdl 8192]} (70... f2 $11) 71. Kf4 $18 {[%emt 0:01:09]} ({Not} 71. Ke3 Nf5+ 72. Ke4 (72. Kxf3 Nxd4+ 73. Ke4 Nc6 $16) 72... Nh4 $16) 71... f2 {[%emt 0:00:22]} 72. Kg4 $2 {[%emt 0:00:55]} (72. Bf1 $18 {Kg4 would kill now.} Ke6 73. Ba6) 72... Ng2 $11 {[%emt 0:00:07] Strongly threatening ...Ne3+.} 73. Kf3 $1 {[%emt 0:00:05][%csl LRf2,LRg2] Against Ne3} Ne1+ {[%emt 0:00:48]} 74. Kxf2 {[%emt 0:00:13]} Nc2 {[%emt 0:00:04]} 75. d5 {[%emt 0:00:14] Threatens to win with Kf3.} Nb4 $1 {[%emt 0:00:21] The position is equal.} 76. Kf3 {[%emt 0:00:49] Hoping for Kf4.} Nxd5 {[%emt 0:00:09]} 77. Kg4 {[%emt 0:01:03] White threatens Bxd5 and mate.} Ne3+ {[%emt 0:01:29]} 78. Kg5 {[%emt 0:00:05]} Nxc4 {[%emt 0:00:20]} 79. Kg6 {[%emt 0:00:03]} Ke7 {[%emt 0:00:11]} 80. Kxg7 {[%emt 0:00:06]} Nd6 {[%emt 0:00:24]} 81. h6 {[%emt 0:00:07]} Nf5+ {[%emt 0:00:06]} 82. Kg6 {[%emt 0:00:04] Threatening mate with h7.} Nxh6 {[%emt 0:00:14] Weighted Error Value: White=0.14 (very precise) /Black=0.14 (very precise)} 1/2-1/2

[Event "Krakow Championship-A 2022"]
[Site "Krakow"]
[Date "2022.06.26"]
[Round "2.12"]
[White "Stevik, Patrik jun."]
[Black "Rudolf, Michal"]
[Result "0-1"]
[ECO "A46"]
[WhiteElo "2188"]
[BlackElo "2361"]
[Annotator "TA"]
[PlyCount "96"]
[EventDate "2022.06.25"]
[EventType "swiss"]
[EventCountry "POL"]
[SourceTitle "playchess.com"]
[Source "ChessBase"]
[SourceQuality "1"]
[TimeControl "40/5400+30:1800+30"]

{[%evp 11,96,15,37,52,41,0,-11,0,6,17,14,10,8,2,9,3,10,0,16,4,6,0,0,-9,-9,-12,-16,-9,-7,-12,-11,-16,-7,-22,-19,-22,-5,-5,-4,-6,-8,-6,0,0,-2,0,0,-4,-2,-3,-3,-80,-20,-81,-81,-187,-190,-194,-163,-201,-196,-187,-100,-221,-220,-220,-220,-195,-205,-256,-230,-1435,-1360,-1408,-1274,-29968,-29968,-29973,-29974,-29974,-29975,-29975,-29976,-29977,-29978,-29978,-29978]} 1. d4 {[%emt 0:00:18]} Nf6 {[%emt 0:00:09]} 2. Nf3 {[%emt 0:00:08][%cal Bg1f3,Bf3d4,Bd4b3,Bb3d2,Bd2c4][%mdl 32]} e6 {[%emt 0:00:16]} 3. g3 {[%emt 0:01:06]} c5 {[%emt 0:02:49]} 4. Bg2 {[%emt 0:02:13]} Nc6 {[%emt 0:02:41]} 5. O-O {[%emt 0:01:21]} cxd4 {[%emt 0:05:53]} 6. Nxd4 {[%emt 0:00:08]} Bc5 {[%emt 0:00:48]} 7. Nb3 {[%emt 0:04:39] A46: 1 d4 Nf6 2 Nf3 e6: Torre, London and Colle Systems.} Be7 {[%emt 0:00:08][%cal Bc5e7,Be7d8,Bd8c7][%mdl 32]} 8. Bf4 {[%emt 0:09:16]} (8. e4 $14) 8... d5 $11 {[%emt 0:00:24]} 9. c4 {[%emt 0:05:40] The position is equal.} dxc4 {[%emt 0:06:44] [#] aiming for ...Qxd1.} 10. N3d2 $146 {[%emt 0:03:28]} ({Predecessor:} 10. Qxd8+ Nxd8 11. Na5 Nd5 12. Nxc4 Nxf4 13. gxf4 Bd7 14. Nc3 Rc8 15. Ne5 Bb4 16. Ne4 {½-½ (32) Radjabov,T (2726)-Hou,Y (2663) Shamkir 2016}) 10... Nd5 {[%emt 0:03:27]} 11. Nxc4 {[%emt 0:00:36]} Nxf4 {[%emt 0:00:09]} 12. Qxd8+ {[%emt 0:06:55]} Bxd8 {[%emt 0:00:12]} 13. gxf4 {[%emt 0:00:24]} Bc7 {[%emt 0:03:27]} 14. e3 {[%emt 0:01:37]} Ke7 {[%emt 0:11:50]} 15. Nc3 {[%emt 0:04:20][%cal Bb1c3,Bc3b5,Bb5c7][%mdl 32]} Na5 {[%emt 0:00:57]} 16. Nb5 {[%emt 0:04:16]} Nxc4 {[%emt 0:02:32]} 17. Nxc7 {[%emt 0:00:42]} Rb8 {[%emt 0:00:04]} 18. Nb5 {[%emt 0:05:57]} Bd7 {[%emt 0:05:58]} 19. Nd4 {[%emt 0:01:20]} Rhc8 {[%emt 0:03:30]} 20. Rac1 {[%emt 0:05:36]} Nd6 {[%emt 0:08:55]} 21. Rfd1 {[%emt 0:02:02]} f6 {[%emt 0:01:43]} 22. h3 {[%emt 0:06:40]} h6 {[%emt 0:03:52]} 23. b3 {[%emt 0:01:02]} g5 {[%emt 0:00:12]} 24. fxg5 {[%emt 0:05:14]} hxg5 {[%emt 0:00:07]} 25. f4 {[%emt 0:00:06]} Rxc1 {[%emt 0:08:42]} 26. Rxc1 {[%emt 0:01:59]} Rg8 {[%emt 0:01:03]} 27. Kh2 {[%emt 0:00:27]} Rc8 {[%emt 0:01:38]} 28. Rxc8 {[%emt 0:02:29]} Bxc8 {[%emt 0:00:06][%mdl 4096] Endgame KBN-KBN} 29. Kg3 {[%emt 0:02:40]} e5 {[%emt 0:00:26]} 30. fxe5 {[%emt 0:00:36]} fxe5 {[%emt 0:00:09]} 31. Nf3 {[%emt 0:00:55] [#]} (31. Ne2 $11) 31... Ne4+ $1 $17 {[%emt 0:02:28]} 32. Kh2 {[%emt 0:00:07]} Kf6 {[%emt 0:00:13]} 33. Ne1 {[%emt 0:01:14] [#]} (33. b4 $17) 33... Nc3 $1 $19 {[%emt 0:00:19]} 34. a3 {[%emt 0:00:38]} b6 {[%emt 0:05:29]} 35. Kg3 {[%emt 0:02:51]} Be6 {[%emt 0:02:33]} 36. b4 {[%emt 0:00:20]} Bd7 {[%emt 0:00:16] Against Bc6} ({Black should play} 36... e4 $19 37. Nc2 Ke5) 37. Nd3 {[%emt 0:06:14] Now White is beyond hope.} (37. Ba8 $17) 37... Nb1 {[%emt 0:00:46]} 38. Nf2 {[%emt 0:00:50]} Nxa3 {[%emt 0:00:20]} 39. Ne4+ {[%emt 0:00:06]} Kg6 {[%emt 0:00:23] ...Nc2 is the strong threat.} 40. Nd6 {[%emt 0:00:30]} Nb5 {[%emt 0:02:48]} 41. Nxb5 {[%emt 0:36:02]} (41. Ne4) 41... Bxb5 {[%emt 0:30:04] KB-KB} 42. Bd5 {[%emt 0:04:05]} a5 {[%emt 0:00:46]} 43. bxa5 {[%emt 0:00:07]} bxa5 {[%emt 0:00:03][%cal Bb6a5,Ba5a4,Ba4a3][%mdl 32] Black mates.} 44. h4 {[%emt 0:00:00]} gxh4+ {[%emt 0:00:00]} 45. Kxh4 {[%emt 0:00:00]} a4 {[%emt 0:00:00]} 46. Be4+ {[%emt 0:00:00]} Kf6 {[%emt 0:00:00]} 47. Bc2 {[%emt 0:00:00]} a3 {[%emt 0:00:00]} 48. Bb3 {[%emt 0:00:00]} Bd7 {[%emt 0:00:00] Weighted Error Value: White=0.45/Black=0.04 (flawless)} 0-1